Cogmind - Beta 17 @@@ ROGUE MODE // 2026.07.31 @ 20:23:34 Player: Afro Result: Self-destructed Performance ------------- Evolutions (2) 1000 Regions Visited (3) 600 Robots Destroyed (24) 120 Value Destroyed (685) 685 Prototype IDs (0) 0 Alien Tech Used (0) 0 Bonus (-23) -23 TOTAL SCORE: 2382 Bonus ------- Friendly Fire -23 Cogmind --------- Core Integrity 464/550 Matter 0/300 Energy 81/160 System Corruption 0% Temperature Warning (330) Movement Rolling (115) Ox1 Location -8/Materials Parts ------- > --- POWER (1) -------- Light Nuclear Core > --- PROPULSION (3) --- Aluminum Leg Armored Huge Wheel > --- UTILITY (4) ------ Large Storage Unit Improved Sensor Array Improved Signal Interpreter ECM Suite > --- WEAPON (3) ------- Gatling Laser Battle Rifle > --- INVENTORY (15) --- Light Nuclear Core Aluminum Leg Trap Scanner Improved Propulsion Shielding Weapon Shielding Makeshift Light Armor Plating Scrap Shield High-powered Tractor Beam Gatling Laser Gatling Laser Gatling Laser Assault Rifle Mining Claw Peak State ------------ > --- POWER ------------ Light Nuclear Core > --- PROPULSION ------- Aluminum Leg Armored Huge Wheel > --- UTILITY ---------- Large Storage Unit Improved Sensor Array Improved Signal Interpreter ECM Suite > --- WEAPON ----------- Gatling Laser Assault Rifle Barrage Gun > --- INVENTORY -------- Light Nuclear Core Light Nuclear Core Aluminum Leg Trap Scanner Improved Propulsion Shielding Weapon Shielding Makeshift Light Armor Plating Scrap Shield High-powered Tractor Beam Gatling Laser Gatling Laser Gatling Laser Battle Rifle Mining Claw [Rating: 32] Favorites ----------- Power Light Nuclear Core Engine Light Ion Engine Power Core Light Nuclear Core Propulsion Light Treads Treads Light Treads Leg Aluminum Leg Wheel Armored Huge Wheel Utility Large Storage Unit Device ECM Suite Storage Large Storage Unit Processor Improved Signal Interpreter Weapon Assault Rifle Energy Gun Gatling Laser Ballistic Gun Assault Rifle Launcher Grenade Launcher Slashing Weapon Mining Claw Build | -11 -10 -10 -8 ------- Run | Yrd Mat Sub Mat Slots Evolved 4 | . . . 4 Power . | . . . . Propulsion 1 | . . . 1 Utility 2 | . . . 2 Weapon 1 | . . . 1 Parts Attached 31 | 8 9 4 10 Power 5 | 1 3 . 1 Engine 2 | 1 1 . . Core 3 | . 2 . 1 Reactor . | . . . . Propulsion 6 | 2 . . 4 Treads 2 | 2 . . . Leg 3 | . . . 3 Wheel 1 | . . . 1 Hover . | . . . . Flight . | . . . . Utility 9 | 3 3 . 3 Device 6 | 2 2 . 2 Storage 2 | 1 1 . . Processor 1 | . . . 1 Hackware . | . . . . Protection . | . . . . Artifact . | . . . . Weapon 11 | 2 3 4 2 Energy Gun 1 | . . . 1 Energy Cannon . | . . . . Ballistic Gun 8 | 2 2 3 1 Ballistic Cannon . | . . . . Launcher 1 | . . 1 . Special Weapon . | . . . . Impact Weapon . | . . . . Slashing Weapon 1 | . 1 . . Piercing Weapon . | . . . . Special Melee Weapon . | . . . . Unidentified Prototypes . | . . . . Parts Lost 1 | . . . 1 Power 1 | . . . 1 Propulsion . | . . . . Utility . | . . . . Weapon . | . . . . Highest Loss Streak 1 | . . . 1 To Critical Strikes . | . . . . Average Backups 12 | 4 11 14 13 Power 1 | 1 1 1 1 Propulsion 2 | 1 2 3 1 Utility 3 | . 3 5 5 Weapon 4 | . 4 4 5 Tool/Special . | . . . . Unused Backups 21 | 1 7 2 11 Power 3 | 1 2 . . Propulsion 1 | . 1 . . Utility 9 | . 1 1 7 Weapon 8 | . 3 1 4 Tool/Special . | . . . . Average Slot Usage (%) 98 | . 100 99 88 Engine 6 | . 11 . . Core 7 | . 2 14 9 Treads 24 | . 28 28 1 Leg 1 | . . . 9 Device 14 | . 14 14 19 Storage 13 | . 14 14 9 Energy Gun 1 | . . . 8 Ballistic Gun 26 | . 27 27 16 Peak Build Rating 32 | 7 10 14 32 Average Rating 11 | 6 8 11 29 On Entrance 7 | . 7 10 14 Avg Prop Armor Cover (%) 6 | . . . 6 Naked Turns . | . . . . Heaviest Build 38 | 11 31 32 38 Greatest Support 40 | 40 40 40 40 Greatest Overweight (x) 3 | . . . 3 Average Overweight (x) . | . . . . Largest Inventory Capacity 15 | 8 15 15 15 Average Capacity 13 | 7 12 15 15 Most Carried 15 | 8 15 15 15 Average Carried 12 | 4 11 14 14 Final Capacity 15 | 8 15 15 15 Final Carried 15 | 7 15 15 15 Class Distribution -------------------- 90% | Mutant 6% | Skirmisher Dominant Class ---------------- Mutant | -10/Materials Mutant | -10/Subcaves Skirmisher | -8/Materials Resources | -11 -10 -10 -8 ----------- Run | Yrd Mat Sub Mat Matter Collected 855 | 354 319 153 29 Remotely 126 | 126 . . . Salvage Created 892 | 160 426 76 230 Parts 58 | 12 22 3 21 Haulers Intercepted . | . . . . Recyclers Shooed 1 | . . . 1 Parts Field Recycled . | . . . . Retrieved Matter . | . . . . Parts Self-Destructed . | . . . . Prevented . | . . . . Parts Restored . | . . . . Kills | -11 -10 -10 -8 ------- Run | Yrd Mat Sub Mat Combat Hostiles Destroyed 18 | . 9 2 7 Guns 18 | . 9 2 7 Classes Destroyed 8 | 3 1 1 3 Worker 2 | 1 1 . . Tunneler 3 | 3 . . . Recycler 1 | 1 . . . Swarmer 3 | . . . 3 Grunt 11 | . 9 . 2 Sentry 1 | . . . 1 Hunter 1 | . . . 1 Subdweller 2 | . . 2 . Best Kill Streak 5 | 2 2 1 5 Combat Bots Only 5 | . 2 1 5 Max Kills in Single Turn 1 | 1 1 1 1 Gunslinging . | . . . . Exploded . | . . . . Melee . | . . . . Uniques/NPCs Destroyed . | . . . . Combat | -11 -10 -10 -8 -------- Run | Yrd Mat Sub Mat Hostile Shots Fired 105 | . 31 12 62 Missed 27 | . 7 5 15 Hits 78 | . 24 7 47 Melee 3 | . . . 3 Projectile 75 | . 24 7 44 Critical Strikes 3 | . . . 3 Damage Taken 1133 | . 299 187 647 Core 167 | . 63 18 86 Absorbed by Shields . | . . . . Core Remaining (%) 83 | 100 . 67 . Volleys Fired 94 | 37 25 13 19 Largest 3 | 2 2 2 3 Hottest 133 | 40 40 48 133 Shots Fired 205 | 74 50 24 57 Gun 201 | 74 50 20 57 Cannon . | . . . . Launcher 4 | . . 4 . Special . | . . . . Kinetic 182 | 74 50 20 38 Thermal 19 | . . . 19 Explosive 4 | . . 4 . Electromagnetic . | . . . . Robot Hit Streak 10 | 10 6 5 5 Robot Miss Streak 4 | 4 2 2 4 Penetration Max . | . . . . Secondary Targets 3 | . 1 . 2 Max Gunslinging Chain 1 | . 1 . 1 Shots Hit Robots 120 | 45 32 12 31 Core Hits 50 | 12 17 5 16 Critical Kills . | . . . . Critical Parts Destroyed . | . . . . Critical Strikes . | . . . . Melee Attacks 10 | . 5 1 4 Impact . | . . . . Slashing 10 | . 5 1 4 Piercing . | . . . . Sneak Attacks 1 | . 1 . . Combat Hostiles . | . . . . Follow-up Attacks . | . . . . Damage Inflicted 1542 | 383 445 190 524 Guns 1464 | 383 390 167 524 Cannons . | . . . . Explosions 23 | . . 23 . Melee 44 | . 44 . . Ramming 11 | . 11 . . Kinetic 1152 | 383 390 167 212 Thermal 312 | . . . 312 Explosive 23 | . . 23 . Electromagnetic . | . . . . Impact . | . . . . Slashing 44 | . 44 . . Piercing . | . . . . Highest Corruption 8 | . 8 8 . Average Corruption 4 | . 1 8 . Corruption Purged . | . . . . Corruption Blocked . | . . . . Effects 45 | . 19 26 . Message Errors 10 | . 2 8 . Matter Fused 9 | . 5 4 . Heat Flow Errors 2 | . . 2 . Energy Discharges 9 | . 5 4 . Data Loss (minor) 7 | . 4 3 . Data Loss (major) 4 | . 1 3 . Misfires 1 | . . 1 . Alerts 3 | . 2 1 . Overload Shots . | . . . . Overflow Damage 14 | . 14 . . Projectiles . | . . . . Explosions . | . . . . Melee 14 | . 14 . . Knockbacks . | . . . . Impact . | . . . . Kinetic . | . . . . Secondary . | . . . . Self-Inflicted Damage 21 | . . 21 . Shots 1 | . . 1 . Rammed 5 | . 5 . . Targets Rammed 5 | . 5 . . Kicked . | . . . . Crushed . | . . . . Highest Temperature 411 | . 2 203 411 Average Temperature 129 | . 1 90 151 Received Heat Transfer 387 | . 165 51 171 Effects 2 | . . . 2 Energy Bleed 1 | . . . 1 Short Circuit 1 | . . . 1 Siege Activations . | . . . . Martial Activations . | . . . . Shielding Activations . | . . . . Robots Disrupted . | . . . . Combat Hostiles . | . . . . Robots Corrupted . | . . . . Combat Hostiles . | . . . . Parts Fried . | . . . . Impact Corruptions . | . . . . Robots Melted . | . . . . Combat Hostiles . | . . . . Parts Melted 1 | . . . 1 Heat Transferred 725 | . . . 725 Parts Sabotaged . | . . . . Parts Stolen . | . . . . Parts Stripped . | . . . . Power Chain Reactions . | . . . . Alert | -11 -10 -10 -8 ------- Run | Yrd Mat Sub Mat Maximum Alert Level . | . . . . Low Security (%) 100 | 100 100 . 100 Level 1 . | . . . . Level 2 . | . . . . Level 3 . | . . . . Level 4 . | . . . . Level 5 . | . . . . High Security . | . . . . Max Security . | . . . . Peak Influence 130 | 10 130 . 112 Initial . | . . . . Average 22 | . 27 . 18 Influence Increases 473 | 25 255 . 193 Destroy 0b10 Robot/C 320 | . 180 . 140 Destroy 0b10 Robot/NC 30 | 25 5 . . Destroy Leader 60 | . 30 . 30 Successful Hack 28 | . 22 . 6 Disable Machine 30 | . 15 . 15 Destroy Structure 5 | . 3 . 2 Influence Decreases 361 | 25 180 75 81 Entered New Map 37 | . . 37 . Time Decay 314 | 25 180 38 71 Lost Part 10 | . . . 10 Squads Dispatched 5 | . 2 . 3 Investigation 1 | . 1 . . Extermination . | . . . . Reinforcement 2 | . 1 . 1 Assault . | . . . . Garrison 2 | . . . 2 Intercept . | . . . . Searches Triggered . | . . . . Construction Impeded . | . . . . Haulers Reinforced . | . . . . Active Scanning Responses . | . . . . Cargo Convoy Interrupts . | . . . . Stealth | -11 -10 -10 -8 --------- Run | Yrd Mat Sub Mat Distress Signals 2 | . 2 . . Communications Jammed . | . . . . Distress Signals . | . . . . Times Spotted 39 | . 19 3 17 Peak Tracking Total 6 | . 3 2 6 Tactical Retreats 4 | . . . 4 ECM-based Alert Blocks 10 | . . . 10 Traps | -11 -10 -10 -8 ------- Run | Yrd Mat Sub Mat Traps Triggered 4 | . 4 . . Indirectly . | . . . . Trap Hack Attempts . | . . . . Triggered . | . . . . Disarmed . | . . . . Reprogrammed . | . . . . Reused . | . . . . Traps Extracted . | . . . . Installed . | . . . . Triggered . | . . . . Machines | -11 -10 -10 -8 ---------- Run | Yrd Mat Sub Mat Machines Disabled 2 | . 1 . 1 Max in Single Turn 1 | . 1 . 1 Machines Repaired . | . . . . Machines Dismantled . | . . . . Machines Sabotaged . | . . . . Overloaded Fab Kills . | . . . . Hacking | -11 -10 -10 -8 --------- Run | Yrd Mat Sub Mat Machines Accessed 5 | . 4 . 1 Terminals 5 | . 4 . 1 Fabricators . | . . . . Repair Stations . | . . . . Recycling Units . | . . . . Scanalyzers . | . . . . Garrison Access . | . . . . Total Hacks 11 | . 10 . 1 Successful 4 | . 3 . 1 Failed 7 | . 7 . . Catastrophic 3 | . 3 . . Database Lockouts . | . . . . Manual 11 | . 10 . 1 Terminals 11 | . 10 . 1 Fabricators . | . . . . Repair Stations . | . . . . Recycling Units . | . . . . Scanalyzers . | . . . . Garrison Access . | . . . . Terminal Hacks . | . . . . Fabricator Hacks . | . . . . Repair Station Hacks . | . . . . Recycling Unit Hacks . | . . . . Scanalyzer . | . . . . Garrison Access Hacks . | . . . . Unauthorized Hacks 4 | . 3 . 1 Terminals 4 | . 3 . 1 Assimilate 4 | . 3 . 1 Fabricators . | . . . . Repair Stations . | . . . . Recycling Units . | . . . . Scanalyzers . | . . . . Garrison Access . | . . . . Data Cores Recovered . | . . . . Used . | . . . . Hacking Detections 3 | . 3 . . Full Trace Events 1 | . 1 . . Feedback Events 1 | . 1 . . Corruption 1 | . 1 . . Feedback Blocked . | . . . . Robot Schematics Acquired . | . . . . Robots Built . | . . . . Authchips . | . . . . Time . | . . . . Total Robot Build Rating . | . . . . Part Schematics Acquired . | . . . . Parts Built . | . . . . Authchips . | . . . . Time . | . . . . Total Part Build Rating . | . . . . Part Studies Acquired . | . . . . Parts Repaired . | . . . . Time . | . . . . Parts Recycled . | . . . . Recycled Matter . | . . . . Retrieved Matter . | . . . . Retrieved Components . | . . . . Parts Scanalyzed . | . . . . Part Schematics Acquired . | . . . . Parts Damaged . | . . . . Bothacking | -11 -10 -10 -8 ------------ Run | Yrd Mat Sub Mat Used RIF Installer . | . . . . Robots Hacked . | . . . . Non-combat . | . . . . Combat . | . . . . Robot Hacks Applied . | . . . . Relay Couplers Released . | . . . . Fabnet Peak Effective % . | . . . . Robots Rewired . | . . . . Allies Hacked . | . . . . Hacks Repelled . | . . . . Allies | -11 -10 -10 -8 -------- Run | Yrd Mat Sub Mat Total Allies . | . . . . Largest Group . | . . . . Highest-Rated Group . | . . . . Highest-Rated Ally . | . . . . Total Orders . | . . . . Ally Attacks . | . . . . Total Damage . | . . . . Kills . | . . . . Allies Corrupted . | . . . . Allies Melted . | . . . . Intel | -11 -10 -10 -8 ------- Run | Yrd Mat Sub Mat Active Infowar (turns) 2942 | 14 1682 910 336 Sensors 457 | . 129 . 328 Structural 81 | . . . 81 Seismic 1173 | 14 1159 . . ECM 1640 | . 394 910 336 Robot Analysis Total . | . . . . Derelict Logs Recovered . | . . . . Drone Launches . | . . . . Drone Recoveries . | . . . . Exploration | -11 -10 -10 -8 ------------- Run | Yrd Mat Sub Mat Turns Passed 3190 | 261 1683 910 336 Spaces Moved 1759 | 94 942 535 188 Core 5 | 5 . . . Treads 1570 | 89 942 535 4 Legs 4 | . . . 4 Wheels 180 | . . . 180 Hover . | . . . . Flight . | . . . . Fastest Speed 50 | 50 160 160 115 Average Speed 155 | 154 160 160 118 Slowest Speed 330 | 160 160 160 330 Overloaded Moves . | . . . . Propulsion Burnouts . | . . . . Robots Hopped . | . . . . Potential Cave-ins . | . . . . Cave-ins Triggered . | . . . . Exploration Rate (%) 39 | 6 99 37 14 Regions Visited 3 Branch Regions 1 Pre-discovered Areas . | . . . . Known Exits Taken . | . . . . Unknown Exits Taken 3 | 1 1 1 . Scrap Searched . | . . . . Spaces Dug 4 | . 2 . 2 Terrain Destroyed 35 | . 2 31 2 Melee 4 | . 2 . 2 Projectile . | . . . . AOE 31 | . . 31 . Terrain Rammed . | . . . . Walls Destroyed . | . . . . Machines Disabled . | . . . . Actions | -11 -10 -10 -8 --------- Run | Yrd Mat Sub Mat Total 2027 | 148 1061 566 252 Wait 48 | . 37 3 8 Move 1756 | 93 941 534 188 Hop . | . . . . Pick Up 36 | 9 17 3 7 Fast Attach 11 | 6 1 1 3 Attach 8 | 1 . . 7 Detach 2 | . . . 2 Swap 26 | 1 14 5 6 Drop 31 | 1 16 6 8 Fire 94 | 37 25 13 19 Melee 10 | . 5 1 4 Ram . | . . . . Kick . | . . . . Crush 5 | . 5 . . Escape Stasis . | . . . . Rewire . | . . . . Trap . | . . . . Miscellaneous . | . . . . Route ------- -11/Scrapyard -10/Materials (discovered 5 exits: [*Mat x3] / [*Min] / [*Sub]) -10/Subcaves (discovered 2 exits: *Mat / [Scr]) -8/Materials History --------- Turn | Location | Event 7 | -11/Scrapyard | Discovered new exit (range 14) 262 | -11/Scrapyard | Entered Materials 263 | -10/Materials | Met a group of wandering Federalists 316 | -10/Materials | Build established: Mutant 441 | -10/Materials | Discovered new exit (range 9) 759 | -10/Materials | Discovered new exit (range 5) 958 | -10/Materials | Discovered new exit (range 15) 1654 | -10/Materials | Discovered new exit (range 16) 1819 | -10/Materials | Discovered new exit (range 3) 1945 | -10/Materials | Entered Subcaves 1946 | -10/Subcaves | Continued accompanying wandering Federalists (3) 1946 | -10/Subcaves | Approached by a straggling Scientist 2132 | -10/Subcaves | Shifting Twisted Machinery released Battle Rifle 2137 | -10/Subcaves | Shifting Twisted Machinery released Mak. Light Armor Plating 2815 | -10/Subcaves | Discovered new exit (range 8) 2855 | -10/Subcaves | Entered Materials 2855 | -8/Materials | Evolved 4 slots: Propulsion x1, Utility x2, Weapon x1 3087 | -8/Materials | Garrison activated, responded to threat 3191 | -8/Materials | Self-destructed Last Messages --------------- 03143_ K-01 Serf collects debris. 03145_ S-10 Pest destroyed. 03145_ Switching to secondary target: S-10 Pest. 03147_ Slug penetrates Wall. 03148_ S-10 Pest destroyed. 03150_ Slug penetrates Wall. 03164_ Lgt. Nuclear Core destroyed. 03165_ Y-45 Defender destroyed. 03169_ Acquired 10 matter. 03171_ Acquired 19 matter. 03175_ Penetrated by Slug. 03178_ H-55 Commando destroyed. 03178_ Switching to secondary target: G-47 Trooper. 03182_ O-16 Technician: "IFF HANDSHAKE FAILED. SECURING TERMINAL." 03188_ G-47 Trooper suffers critical hit (Burn). 03191_ Barrage Gun severed. 03191_ ALERT: Hostiles spotted, dispatching reinforcements to Terminal M010. Map ----- +----------------------------------------------------+ | ??????????????????????????????? | | ??????????????????????????????? | | ??????????????????????????????? | | ??????????????????????????????? | | ??????????????????????????????? | | ??????????????????????????????? | | ??????????????????????????????? | | ??????????????????????????????? | | ??????????????????????????????? | | ??????????????????????????????? | | ??????????????????????????????? | | ??????????????????????????????? | | ??????????????????????????????? | | ??????????????????????????????? | | ??????????????????????????????? | | ??????????????????????????????? | | ?????????????Y????????????????? | | ??????????????????????????????? | | ??????????????#???????????????? | | ????????????? #???????????????? | | ???????????? #???????????????? | | ??????????? #???????????????? | | ???######## ####### ???????? | | ???# g ??????? | | ???# [ g ??????? | | ??##=%@l ??????? | | ??##*= ###+######?????? ??????? | | ??##[=*# ?????????????? ??????? | | ??## # ?????????????? ??????? | | ??## # ?????????????? ??????? | | ??## # ?????????????? ??????? | | ??## # ?????????????? ??????? | | ??## # ???????????? # ##????? | | ??## # ???????????? # ##????? | | ??## !# ###### ##????? | | ??## =[################ ##????? | | ??## *%# #### ##????? | | ??## =[# #### ##????? | | ??## [%# #### ##????? | | ??## ! # #### ### | | ??## " ####[####### | | ??## # " %%! | | ??## # "###+####### | | ??## "############ =! ##### | | ??## ==######### """] ##### | | ??## =##?????## "T" ## ! | | ??## ##?????## ## | | ??## == ##?????## ## | | ??## !!##?????## ## "" | | ??## !!##?????######+### "" | +----------------------------------------------------+ Best States ------------- Heat Dissipation 31 Energy Generation 14 Energy Capacity 250 Matter Stores 300 Matter Capacity 300 Sight Range 16 Robot Scan Range 15 Terrain Scan Density 10 ECM Strength 1 Evasion (%) 40 Recoil Reduction 2 Item Schematics ----------------- None Robot Schematics ------------------ None Fabricated ------------ Nothing Repaired ---------- Nothing Studied --------- None Alien Tech Used ----------------- None Achievements -------------- Strength In Numbers Challenges ------------ None Game ------ Seed FieldthrustLobotomyProjector Manual? 0 Play Time 00:36:39 Cumulative 57.9 hours Start 2026.07.31 @ 16:41:32 End 2026.07.31 @ 20:23:34 Sessions 3 Manual Loads 0 Difficulty Rogue Special Mode None Game No. 52 Rogue 52 Adventurer 0 Explorer 0 Win Type - Total 0 Types 0/0/0/0/0/0/0/0/0/0 Lore% 10 Gallery% 28 Achievement% 21 Wizard Run 0 Options --------- Layout 1 ASCII 0 Keyboard 0 Movement Mouse Keybinds 0 Fullscreen 2 Font 24/Smallcaps Map View 50x35 Zoom Use 0% Tactical HUD 1 Map Filters NONE Filters NONE Steam 1 RUN: d479c87f-a6d0-4bf0-aaaa-e8357c1f4ccf